bitfinex-derivatives/quotes_ETHF0:USTF0_20250331
["timestamp","ask_amount","ask_price","bid_price","bid_amount"]
[1743454005623,1.09434,1827.9,1827.8,4.58999664]
[1743454005822,2.51414,1827.9,1827.8,4.58999664]
[1743454006022,2.51414,1827.9,1827.8,6.00349664]
[1743454007520,1.09434,1827.9,1827.8,6.00349664]
[1743454007721,1.09434,1827.9,1827.8,7.09789664]
[1743454008814,3.574,1828.0,1827.8,6.00349664]
[1743454009019,4.66832,1828.0,1827.9,2.58244]
[1743454009223,4.66832,1828.0,1827.9,3.26023664]
[1743454009526,3.15996,1828.1,1828.0,1.09428]
[1743454009823,6.73496,1828.1,1828.0,1.09428]
[1743454010023,6.73496,1828.1,1828.0,2.58238]
[1743454010524,1.10238502,1828.3,1828.2,1.09416]
[1743454010722,4.67738502,1828.3,1828.2,1.09416]
[1743454010922,1.09416,1828.2,1828.1,3.97679]
[1743454011424,1.09416,1828.2,1828.1,4.65375097]
[1743454013330,0.00820502,1828.3,1828.2,1.09416]
[1743454013631,0.00820502,1828.3,1828.2,5.80876]
[1743454013931,0.00820502,1828.3,1828.2,6.48572097]
[1743454014116,1.10230502,1828.3,1828.2,6.48572097]
[1743454017227,1.10230502,1828.3,1828.2,7.21910144]
[1743454017628,7.5188,1828.5,1828.4,1.09404]
[1743454017937,5.46863,1829.0,1828.5,1.09392]
[1743454017938,4.66898,1828.6,1828.5,1.09392]
[1743454018127,1.09398,1828.6,1828.5,4.00412]
[1743454018326,1.09398,1828.6,1828.5,4.68108097]
[1743454018634,1.09398,1828.6,1828.5,0.67696097]
[1743454019230,1.09398,1828.5,1828.4,0.00820502]
[1743454019430,5.36498,1828.5,1828.4,0.68650127]
[1743454019825,5.36498,1828.5,1828.4,2.15300127]
[1743454020033,6.08948,1828.5,1828.4,2.15300127]
[1743454020624,6.08948,1828.5,1828.4,3.24704127]
[1743454020827,6.08948,1828.5,1828.4,2.15300127]
[1743454021531,6.08948,1828.5,1828.4,3.24704127]
[1743454021830,4.66898,1828.5,1828.4,6.45484127]
[1743454022031,4.66898,1828.5,1828.4,2.15300127]
[1743454022235,4.66898,1828.5,1828.4,3.24704127]
[1743454022427,4.66898,1828.5,1828.4,6.45484127]
[1743454022823,3.26484,1828.6,1828.5,1.09398]
[1743454023028,0.73730502,1828.7,1828.6,1.09392]
[1743454023231,5.40516502,1828.7,1828.6,1.09392]
[1743454023426,5.40516502,1828.7,1828.6,3.17301625]
[1743454023730,5.40516502,1828.7,1828.6,2.07909625]
[1743454024227,5.40516502,1828.7,1828.6,0.67829625]
[1743454025137,1.09392,1828.6,1828.5,1.4008]
[1743454025341,1.09398,1828.5,1828.4,0.00820502]
[1743454025834,2.55948,1828.5,1828.4,2.0873384]
[1743454026334,2.55948,1828.5,1828.4,1.40900502]
[1743454026535,2.55948,1828.5,1828.4,2.08728993]
[1743454027835,2.55948,1828.5,1828.4,3.18132993]
[1743454028037,2.55948,1828.5,1828.4,2.08728993]
[1743454031530,1.09398,1828.5,1828.4,3.18132993]
[1743454031725,1.09398,1828.5,1828.4,3.88232993]
[1743454033840,4.66797,1828.6,1828.5,1.09398]
[1743454034141,4.66797,1828.6,1828.5,2.54158]
[1743454034541,4.66797,1828.6,1828.5,3.21986491]
[1743454039445,4.66797,1828.6,1828.5,3.9545675]
[1743454039644,4.66797,1828.6,1828.5,3.21986491]
[1743454040038,1.10211502,1828.7,1828.6,1.09392]
[1743454040244,1.10211502,1828.7,1828.6,6.40582]
[1743454040640,1.10211502,1828.7,1828.6,7.08410491]
[1743454041254,1.10211502,1828.7,1828.6,3.87630491]
[1743454041858,2.46391502,1828.7,1828.6,2.78238491]
[1743454042056,2.46391502,1828.7,1828.6,3.87630491]
[1743454042559,2.46391502,1828.7,1828.6,2.78238491]
[1743454042855,2.46391502,1828.7,1828.6,2.05438491]
[1743454043059,2.46391502,1828.7,1828.6,0.67828491]
[1743454043459,2.46391502,1828.7,1828.4,0.00820502]
[1743454043460,1.09398,1828.5,1828.4,0.00820502]
[1743454043756,1.09422,1828.1,1828.0,1.4582]
[1743454044052,1.09434,1827.9,1827.8,1.09437]
[1743454044253,1.09434,1827.9,1827.8,5.03766166]
[1743454044448,1.09434,1827.9,1827.8,5.71377309]
[1743454045259,1.09434,1827.9,1827.8,5.71305957]
[1743454045465,1.09434,1827.9,1827.8,7.20845957]
[1743454046652,1.09434,1827.9,1827.8,6.11408957]
[1743454046858,2.56634,1827.9,1827.8,7.20848957]
[1743454047159,2.56634,1827.9,1827.8,7.20771051]
[1743454047559,2.56634,1827.9,1827.8,6.47371143]
[1743454048954,1.09434,1827.9,1827.8,6.47371143]
[1743454049159,1.09434,1827.9,1827.8,7.20724354]
[1743454049456,1.82372,1828.2,1828.1,1.09422]
[1743454049660,5.39772,1828.2,1828.1,1.09422]
[1743454050155,3.574,1828.3,1828.1,2.54152]
[1743454050362,4.66814,1828.3,1828.2,1.09416]
[1743454050656,1.81048,1828.4,1828.3,1.0941]
[1743454050864,1.09408,1828.4,1828.3,1.0941]
[1743454051065,1.09408,1828.4,1828.3,3.25571143]
[1743454052361,1.09408,1828.4,1828.3,2.16161143]
[1743454052558,2.52228,1828.4,1828.3,2.16161143]
[1743454053064,1.09408,1828.4,1828.3,3.25571143]
[1743454055365,5.0042,1828.5,1828.3,3.25571143]
[1743454055366,3.576,1828.5,1828.4,1.09404]
[1743454055660,1.09398,1828.5,1828.4,6.4768]
[1743454055963,1.09398,1828.5,1828.4,7.15291143]
[1743454056961,1.09398,1828.5,1828.4,3.94511143]
[1743454057158,1.09398,1828.5,1828.4,7.15291143]
[1743454057354,2.54438,1828.5,1828.4,2.85111143]
[1743454057561,2.54438,1828.5,1828.4,2.10621143]
[1743454057963,2.54438,1828.5,1828.4,1.4301]
[1743454058365,2.54438,1828.5,1828.4,2.52414]
[1743454058667,1.09398,1828.5,1828.4,5.73194]
[1743454059264,1.09398,1828.5,1828.4,2.52414]
[1743454059469,2.54438,1828.5,1828.4,3.19830922]
[1743454060266,2.54438,1828.5,1828.4,6.40610922]
[1743454061459,2.54438,1828.5,1828.4,5.31206922]
[1743454061669,2.54438,1828.5,1828.4,6.40610922]
[1743454061861,2.54438,1828.5,1828.4,5.31206922]
[1743454062060,1.09404,1828.4,1828.3,1.09409]
[1743454062262,4.01084,1828.4,1828.3,1.4089]
[1743454062458,4.01084,1828.4,1828.3,3.17725684]
[1743454063669,1.81594,1828.4,1828.3,3.17725684]
[1743454065469,1.81594,1828.4,1828.3,2.08315684]
[1743454065975,1.81594,1828.4,1828.3,0.67425684]
[1743454066172,1.81594,1828.4,1827.9,3.2078]
[1743454066173,1.09428,1828.0,1827.9,3.2078]
[1743454066472,1.0944,1827.8,1827.7,1.4148]
[1743454067172,2.5044,1827.8,1827.7,1.4148]
[1743454067570,1.09439,1827.9,1827.8,1.0944]
[1743454067775,1.09439,1827.9,1827.8,5.0554]
[1743454067975,1.09439,1827.9,1827.8,5.7551]
[1743454070377,1.09434,1828.0,1827.9,1.09434]
[1743454070569,1.09434,1828.0,1827.9,2.53964]
[1743454072478,7.52257,1828.1,1828.0,1.09428]
[1743454072673,7.52257,1828.1,1828.0,1.3962]
[1743454074872,7.52257,1828.1,1828.0,2.49048]
[1743454075181,6.82357,1828.1,1828.0,2.49048]
[1743454075375,6.82352,1828.1,1828.0,5.69828]
[1743454075583,6.12501,1828.2,1828.1,1.09422]
[1743454075873,6.12501,1828.2,1828.1,1.79592]
[1743454076481,4.66921,1828.2,1828.1,1.79592]
[1743454076778,4.66921,1828.2,1828.1,2.51062]
[1743454077174,1.09421,1828.2,1828.1,2.51062]
[1743454077577,1.4702,1828.4,1828.1,1.4164]
[1743454077767,5.3995,1828.4,1828.3,1.0941]
[1743454077971,4.6691,1828.4,1828.3,1.0941]
[1743454079180,4.6691,1828.4,1828.3,1.76338198]
[1743454080383,4.6691,1828.4,1828.3,0.66928198]
[1743454080882,4.6691,1828.4,1828.2,4.30191]
[1743454080883,1.0941,1828.3,1828.2,3.2078]
[1743454081079,1.09434,1828.0,1827.9,1.09431]
[1743454081281,1.09434,1827.9,1827.8,5.75277]
[1743454081477,1.09434,1827.9,1827.8,5.01757]
[1743454081775,1.09434,1827.9,1827.8,5.0176]
[1743454082078,1.09434,1827.9,1827.8,5.68690932]
[1743454082278,2.47994,1827.9,1827.8,5.68690932]
[1743454085378,1.09434,1827.9,1827.8,5.68690932]
[1743454087584,1.09434,1827.9,1827.8,6.36830932]
[1743454091386,1.80024,1827.9,1827.8,6.36830932]
[1743454091788,1.80024,1827.9,1827.8,3.87710932]
[1743454091992,2.52494,1827.9,1827.8,3.87710932]
[1743454092192,2.52494,1827.9,1827.8,6.39460932]
[1743454092384,2.52494,1827.9,1827.8,5.30020932]
[1743454092784,2.52494,1827.9,1827.8,6.39460932]
[1743454094681,1.09434,1827.9,1827.8,7.12923753]
[1743454095692,1.09427,1828.1,1828.0,1.09428]
[1743454095891,1.0942,1828.2,1828.1,1.09416]
[1743454096191,1.0942,1828.2,1828.1,3.87356932]
[1743454097193,1.0942,1828.2,1828.1,2.77940932]
[1743454097510,3.2467,1828.2,1828.1,0.66930932]
[1743454098997,3.2467,1828.2,1828.1,2.04970932]
[1743454099994,3.2467,1828.2,1828.1,3.14392932]
[1743454102092,3.2467,1828.2,1828.1,2.04970932]
[1743454103202,3.2467,1828.2,1828.1,0.66930932]
[1743454104399,5.7467,1828.2,1827.6,3.2078]
[1743454104695,1.09482,1827.1,1827.0,4.30261]
[1743454104996,1.095,1826.8,1826.7,0.44671876]
[1743454105195,1.095,1826.8,1826.7,0.73524024]
[1743454105397,1.09506,1826.7,1826.6,4.99112]
[1743454105598,0.6873,1827.0,1826.7,0.4490013]
[1743454105804,5.35821,1827.0,1826.9,1.09494]
[1743454105995,4.2633,1827.0,1826.9,1.09494]
[1743454106191,4.2633,1827.0,1826.9,2.57354]
[1743454106390,5.35818,1827.0,1826.9,1.4786]
[1743454106594,1.78218,1827.0,1826.9,2.57354]
[1743454106798,5.35718,1827.0,1826.9,2.57354]
[1743454108495,4.2623,1827.0,1826.9,2.57354]
[1743454109000,4.66983,1827.1,1827.0,1.09485]
[1743454109198,4.66983,1827.1,1827.0,2.46005]
[1743454109495,4.66983,1827.1,1827.0,1.3652]
[1743454109698,6.07853,1827.1,1827.0,1.3652]
[1743454113000,1.09494,1826.9,1826.8,4.3028]
[1743454113198,2.52752,1827.0,1826.9,1.09494]
[1743454113399,3.26512,1827.0,1826.9,1.09494]
[1743454114300,3.26512,1827.0,1826.9,2.45534]
[1743454114697,1.83252,1827.0,1826.9,2.45534]
[1743454114898,4.27910502,1827.2,1827.1,1.09482]
[1743454115106,5.37387502,1827.2,1827.1,1.09482]
[1743454115303,1.09482,1827.1,1827.0,2.48088]
[1743454115513,1.09488,1827.0,1826.9,1.8228]
[1743454115803,2.45817,1827.1,1827.0,1.09488]
[1743454116404,2.45817,1827.1,1827.0,4.30268]
[1743454117203,1.3633,1827.1,1827.0,1.09488]
[1743454117505,5.37390502,1827.2,1827.1,1.09482]
[1743454117506,3.59120502,1827.2,1827.1,1.09482]
[1743454117704,0.00820502,1827.2,1827.1,1.09482]
[1743454117903,1.09463,1827.5,1827.4,1.09458]
[1743454117904,1.0946,1827.5,1827.4,1.09458]
[1743454118210,1.0946,1827.5,1827.4,4.30238]
[1743454119197,1.09464,1827.4,1827.3,1.81095502]
[1743454119607,1.5017,1827.5,1827.4,1.09464]
[1743454119608,2.59633,1827.5,1827.4,1.09464]
[1743454120108,2.59633,1827.5,1827.4,4.30244]
[1743454121706,2.59633,1827.5,1827.4,1.09464]
[1743454122401,2.59633,1827.5,1827.4,4.30244]
[1743454127309,2.59633,1827.5,1827.4,2.59234]
[1743454127614,2.59633,1827.5,1827.4,1.4977]
[1743454128407,2.59633,1827.5,1827.4,2.59234]
[1743454128709,2.59633,1827.5,1827.4,4.7055]
[1743454130211,2.59633,1827.5,1827.4,5.80014]
[1743454132810,2.59633,1827.5,1827.4,2.59234]
[1743454133703,2.59633,1827.5,1827.4,3.2562299]
[1743454134512,2.59633,1827.5,1827.4,2.1615899]
[1743454134708,2.59633,1827.5,1827.4,3.2562299]
[1743454135907,2.59633,1827.5,1827.4,2.1615899]
[1743454136107,2.59633,1827.5,1827.4,3.2562299]
[1743454138417,0.00820502,1827.6,1827.5,1.09458]
[1743454138711,1.09433,1828.0,1827.9,1.09428]
[1743454138916,1.09434,1827.9,1827.8,3.84457]
[1743454139516,1.09434,1827.9,1827.8,2.0280899]
[1743454139712,11.08274,1827.9,1827.8,9.9e-06]
[1743454140216,1.09458,1827.5,1827.4,2.45881]
[1743454140609,4.67858,1827.5,1827.4,1.3642]
[1743454141218,6.05768,1827.5,1827.4,1.3642]
[1743454142721,6.05768,1827.5,1827.4,2.45884]
[1743454143121,6.05768,1827.5,1827.4,3.21034]
[1743454143821,6.05768,1827.5,1827.4,2.1157]
[1743454144817,6.05768,1827.5,1827.4,1.3642]
[1743454145138,6.05768,1827.5,1827.4,2.45884]
[1743454146024,6.05768,1827.5,1827.4,1.3642]
[1743454146423,6.05768,1827.5,1827.4,2.45884]
[1743454147318,6.05768,1827.5,1827.4,2.09963805]
[1743454147518,1.09464,1827.4,1827.3,3.21600502]
[1743454147724,3.26684,1827.4,1827.3,3.21600502]
[1743454148025,3.26684,1827.4,1827.3,0.00820502]
[1743454148225,3.26684,1827.4,1827.3,1.50300502]
[1743454155127,5.76684,1827.4,1827.3,5.02e-06]
[1743454157728,3.26684,1827.4,1827.3,5.02e-06]
[1743454161036,5.76684,1827.4,1827.3,5.02e-06]
[1743454161431,5.86486306,1827.4,1827.3,5.02e-06]
[1743454162028,1.095,1826.8,1826.7,1.4564]
[1743454162229,1.09518,1826.5,1826.4,1.4262]
[1743454162433,4.67118,1826.5,1826.4,1.4564]
[1743454162739,1.09542,1826.1,1826.0,5.72948]
[1743454162923,1.09542,1826.1,1826.0,4.634]
[1743454163229,1.09554,1825.9,1825.8,1.4564]
[1743454163436,6.31696,1825.9,1825.5,0.7309]
[1743454163634,1.0957,1825.7,1825.6,4.3035]
[1743454163834,1.09572,1825.6,1825.5,1.83484502]
[1743454164032,1.0957,1825.7,1825.6,1.0957]
[1743454164338,1.09572,1825.6,1825.5,1.83487502]
[1743454164534,1.09566,1825.7,1825.6,1.09572]
[1743454164732,1.09566,1825.7,1825.6,4.30352]
[1743454165041,4.67355,1825.9,1825.8,1.09555]
[1743454165249,4.67355,1825.9,1825.8,4.3034]
[1743454165458,1.0956,1825.8,1825.7,3.29772]
[1743454165734,3.578,1825.9,1825.8,1.0956]
[1743454165937,1.09554,1825.9,1825.8,1.0956]
[1743454166241,1.09553,1826.0,1825.9,1.09552]
[1743454166739,1.09553,1826.0,1825.9,4.30332]
[1743454166936,1.09553,1826.0,1825.9,3.2078]
[1743454167330,1.09553,1826.0,1825.9,1.3948]
[1743454168132,3.24493,1826.0,1825.9,1.3948]
[1743454169244,1.79173,1826.0,1825.9,1.3948]
[1743454169641,1.09553,1826.0,1825.9,1.3948]
[1743454170340,2.55683,1826.0,1825.9,1.3948]
[1743454171047,1.09553,1826.0,1825.9,1.3948]
[1743454171437,4.67653,1826.0,1825.9,5.69814]
[1743454171840,3.581,1826.0,1825.9,5.69814]
[1743454172036,4.67648,1826.0,1825.9,4.6026]
[1743454172341,4.67648,1826.0,1825.9,5.69814]
[1743454174040,4.67648,1826.0,1825.9,2.49034]
[1743454174250,0.00820502,1826.2,1826.1,1.09542]
[1743454174439,0.00820502,1826.2,1826.1,4.30322]
[1743454174639,1.10356502,1826.2,1826.1,4.30322]
[1743454174841,1.10356502,1826.2,1826.1,5.71412]
[1743454176742,0.00820502,1826.2,1826.1,5.71412]
[1743454177047,3.2078,1826.5,1826.1,5.71412]
[1743454177048,1.09522,1826.5,1826.4,1.09519]
[1743454177254,1.09517,1826.6,1826.5,1.09514]
[1743454177741,4.69211,1826.7,1826.6,1.09512]
[1743454178140,3.597,1826.7,1826.6,1.09512]
[1743454178350,0.00820502,1826.8,1826.7,1.09506]
[1743454178540,1.10325502,1826.8,1826.7,1.83886]
[1743454178851,1.10325502,1826.8,1826.7,0.7438]
[1743454179348,1.10325502,1826.8,1826.7,2.1624]
[1743454179946,2.46585502,1826.8,1826.7,2.1624]
[1743454180747,2.46585502,1826.8,1826.7,1.4186]
[1743454181653,1.10325502,1826.8,1826.7,2.51366]
[1743454182145,1.10320502,1826.8,1826.7,5.72146]
[1743454182349,1.10320502,1826.8,1826.7,2.51366]
[1743454182541,1.10320502,1826.8,1826.7,1.4186]
[1743454184345,1.10320502,1826.8,1826.7,2.51366]
[1743454184544,1.10320502,1826.8,1826.7,1.4186]
[1743454185744,1.10320502,1826.8,1826.7,2.51366]
[1743454192752,1.10320502,1826.8,1826.7,2.94314753]
[1743454194352,1.10320502,1826.8,1826.7,2.51366]
[1743454196857,1.10320502,1826.8,1826.7,2.94414994]
[1743454198961,2.73669,1827.4,1827.1,1.09472]
[1743454199164,1.09476,1827.3,1827.2,1.3885]
[1743454199364,2.53606,1827.3,1827.2,1.3885]
[1743454199859,1.09488,1827.0,1826.9,3.2078]
[1743454200054,4.68688,1827.0,1826.9,3.2078]
[1743454200557,4.68688,1827.0,1826.9,4.6681]
[1743454200769,6.15828,1827.0,1826.9,3.2078]
[1743454200954,6.15828,1827.0,1826.5,1.78868502]
[1743454200955,1.09512,1826.6,1826.5,1.78868502]
[1743454201263,1.09512,1826.6,1826.5,0.00820502]
[1743454201658,2.52722,1826.6,1826.5,0.00820502]
[1743454202256,3.99862,1826.6,1826.5,1.46850502]
[1743454204258,1.79392,1826.6,1826.5,2.56368502]
[1743454204463,5.39492,1826.6,1826.5,2.56368502]
[1743454204863,5.39492,1826.6,1826.5,1.46850502]
[1743454206365,5.39492,1826.6,1826.5,0.00820502]
[1743454209164,2.73796,1826.5,1825.9,3.2078]
[1743454209463,1.09542,1826.1,1826.0,2.1277253]
[1743454209658,4.69442,1826.1,1826.0,1.3926]
[1743454210468,1.09548,1826.0,1825.9,3.21600502]
[1743454210764,2.54878,1826.0,1825.9,4.60860502]
[1743454211668,2.54878,1826.0,1825.9,5.70414502]
[1743454211866,1.09548,1826.0,1825.9,5.70414502]
[1743454212261,1.09548,1826.0,1825.9,4.60860502]
[1743454212461,1.09548,1826.0,1825.9,5.70414502]
[1743454212663,1.09548,1826.0,1825.9,4.60860502]
[1743454212861,1.09548,1826.0,1825.9,5.70414502]
[1743454213064,1.09548,1826.0,1825.9,1.40080502]
[1743454213262,2.57258,1826.0,1825.9,1.40080502]
[1743454216368,2.57258,1826.0,1825.9,2.49634502]
[1743454216569,2.57258,1826.0,1825.9,5.70414502]
[1743454216769,2.57258,1826.0,1825.9,2.49634502]
[1743454216968,1.10365502,1826.1,1826.0,1.09548]
[1743454217163,1.10365502,1826.1,1826.0,2.53818]
[1743454224481,1.10362502,1826.1,1826.0,2.53818]
[1743454224873,0.00820502,1826.1,1826.0,2.53818]
[1743454225790,1.09526,1826.5,1826.4,1.09521]
[1743454225989,1.09526,1826.5,1826.4,4.30301]
[1743454226488,1.09526,1826.5,1826.4,1.09521]
[1743454226791,1.09526,1826.5,1826.4,4.30301]
[1743454226981,1.09526,1826.5,1826.4,5.00491]
[1743454227291,1.09526,1826.5,1826.4,1.79711]
[1743454227592,2.53916,1826.5,1826.4,1.79714]
[1743454227789,2.53916,1826.5,1826.4,5.00494]
[1743454230083,2.53916,1826.5,1826.4,1.79714]
[1743454230888,2.53916,1826.5,1826.4,5.00494]
[1743454231986,2.53916,1826.5,1826.4,3.9097]
[1743454232189,2.53916,1826.5,1826.4,5.00494]
[1743454232388,2.53916,1826.5,1826.4,6.41564]
[1743454233195,2.53916,1826.5,1826.4,5.3204]
[1743454233694,2.53916,1826.5,1826.4,6.41564]
[1743454234300,2.53916,1826.5,1826.4,5.3204]
[1743454234697,2.53916,1826.5,1826.4,6.41564]
[1743454234999,2.53916,1826.5,1826.4,5.3204]
[1743454235491,2.53916,1826.5,1826.4,4.6185]
[1743454236289,2.53916,1826.5,1826.4,1.4107]
[1743454236898,1.09536,1826.2,1826.1,3.9335]
[1743454237086,1.09536,1826.2,1826.1,1.3662]
[1743454237298,1.09536,1826.2,1825.9,3.21600502]
[1743454237299,1.09548,1826.0,1825.9,3.21600502]
[1743454237494,1.09548,1826.0,1825.9,4.58220502]
[1743454237789,1.09548,1826.0,1825.9,0.00820502]
[1743454237993,6.17018,1826.0,1825.9,0.00820502]
[1743454238190,8.67018,1826.0,1825.9,5.02e-06]
[1743454240296,7.5747,1826.0,1825.1,3.2078]
[1743454240595,1.09602,1825.1,1825.0,1.3714]
[1743454240806,4.69802,1825.1,1825.0,1.3714]
[1743454241189,1.09608,1825.0,1824.9,3.2078]
[1743454241396,4.69802,1825.1,1825.0,1.3714]
[1743454242505,4.69802,1825.1,1825.0,2.46748]
[1743454242896,3.602,1825.1,1825.0,2.46748]
[1743454243093,4.69802,1825.1,1825.0,2.46748]
[1743454243697,2.58329502,1825.2,1825.1,1.09602]
[1743454243897,4.70719502,1825.2,1825.1,2.45682]
[1743454244096,1.10419502,1825.2,1825.1,1.3608]
[1743454244600,1.10419502,1825.2,1825.1,2.45682]
[1743454244904,1.10419502,1825.2,1825.1,5.66462]
[1743454245197,1.10419502,1825.2,1825.1,1.3608]
[1743454245402,1.10419502,1825.2,1825.1,2.45682]
[1743454245697,2.50609502,1825.2,1825.1,1.3608]
[1743454246696,2.50606502,1825.2,1825.1,1.3608]
[1743454247009,0.00820502,1825.2,1825.1,5.66462]
[1743454247497,1.10416502,1825.2,1825.1,5.66462]
[1743454247893,1.10416502,1825.2,1825.1,4.5686]
[1743454248094,1.10416502,1825.2,1825.1,1.3608]
[1743454248290,2.57606502,1825.2,1825.1,1.3608]
[1743454249000,1.09608,1825.0,1824.9,0.00820502]
[1743454249502,1.09608,1825.0,1824.9,5.68804502]
[1743454249503,4.70108,1825.0,1824.9,5.68804502]
[1743454249703,5.0769,1825.0,1824.9,5.68804502]
[1743454249900,6.17298,1825.0,1824.9,5.68804502]
[1743454250305,6.17298,1825.0,1824.9,4.59190502]
[1743454252205,6.17298,1825.0,1824.9,0.00820502]
[1743454252400,9.38078,1825.0,1824.9,0.00820502]
[1743454253294,1.09656,1824.2,1824.1,3.2078]
[1743454253502,2.74036,1824.9,1824.1,4.6221]
[1743454253503,3.2078,1824.5,1824.1,4.6221]
[1743454253706,4.72742,1824.5,1824.3,4.30429]
[1743454253897,4.72742,1824.5,1824.4,1.4143]
[1743454254601,4.72742,1824.5,1824.4,2.51074]
[1743454254602,3.631,1824.5,1824.4,2.51074]
[1743454255004,4.72738,1824.5,1824.4,2.51074]
[1743454255204,4.72738,1824.5,1824.4,1.4143]
[1743454256801,6.81548,1824.5,1824.4,1.4143]
[1743454257406,1.09644,1824.4,1824.3,0.00820502]
[1743454257604,2.48514,1824.4,1824.3,0.00820502]
[1743454260111,1.0968,1823.8,1823.7,4.30466]
[1743454260411,1.0968,1823.8,1823.7,3.2078]
[1743454260608,1.0968,1823.8,1823.7,4.30466]
[1743454260808,1.0968,1823.8,1823.7,3.2078]
[1743454261013,1.0968,1823.8,1823.5,1.88533129]
[1743454261014,3.636,1823.9,1823.5,4.30475]
[1743454261304,1.0969,1823.7,1823.5,4.30475]
[1743454261506,1.0969,1823.7,1823.6,1.4755]
[1743454261710,4.7349,1823.7,1823.6,1.4755]
[1743454261909,3.638,1823.7,1823.6,2.57242]
[1743454262213,4.73486,1823.7,1823.6,1.4755]
[1743454262512,4.73486,1823.7,1823.6,2.57242]
[1743454262709,4.73486,1823.7,1823.6,1.4755]
[1743454263019,1.09686,1823.7,1823.6,1.4755]
[1743454263908,1.09686,1823.7,1823.6,2.5724]
[1743454264508,1.09686,1823.7,1823.6,1.4755]
[1743454264717,1.09686,1823.7,1823.6,2.57242]
[1743454265026,0.00820502,1823.9,1823.8,1.0968]
[1743454265208,0.00820502,1823.9,1823.8,4.3046]
[1743454265209,1.10494502,1823.9,1823.8,4.3046]
[1743454265415,0.00820502,1823.9,1823.8,5.7131]
[1743454265613,1.10494502,1823.9,1823.8,5.7131]
[1743454265916,0.00820502,1823.9,1823.8,5.7131]
[1743454266212,1.10494502,1823.9,1823.8,2.5053]
[1743454266411,1.10494502,1823.9,1823.8,5.7131]
[1743454266605,0.00820502,1823.9,1823.8,5.7131]
[1743454267008,1.10494502,1823.9,1823.8,5.7131]
[1743454267209,0.00820502,1823.9,1823.8,5.7131]
[1743454268319,0.00820502,1823.9,1823.8,8.94340637]
[1743454268518,1.09656,1824.3,1824.2,1.09655]
[1743454269112,1.09656,1824.3,1824.2,2.57255]
[1743454269316,1.09656,1824.3,1824.2,1.476]
[1743454270013,1.09656,1824.3,1824.2,2.57256]
[1743454270224,1.09656,1824.3,1824.2,1.476]
[1743454270517,2.57146,1824.3,1824.2,1.476]
[1743454271609,1.09656,1824.3,1824.2,1.476]
[1743454272621,1.09656,1824.3,1824.2,2.57256]
[1743454272821,1.09656,1824.3,1824.2,1.476]
[1743454273220,1.09656,1824.3,1824.2,2.57256]
[1743454273422,1.09656,1824.3,1824.2,1.476]
[1743454274630,1.09656,1824.2,1824.1,0.00820502]
[1743454274924,2.53736,1824.2,1824.1,0.00820502]
[1743454275425,2.53736,1824.2,1824.1,1.45480502]
[1743454276426,2.53736,1824.2,1824.1,0.00820502]
[1743454279028,2.53736,1824.2,1824.1,1.43450502]
[1743454283527,4.73256,1824.2,1824.1,1.43450502]
[1743454286929,5.48116,1824.2,1824.1,1.43450502]
[1743454288631,1.09656,1824.2,1824.1,1.43450502]
[1743454288838,4.72756,1824.2,1824.1,1.43450502]
[1743454292237,4.72756,1824.2,1824.1,2.53112502]
[1743454292438,4.72756,1824.2,1824.1,1.43450502]
[1743454292640,1.09656,1824.2,1824.1,6.47491127]
[1743454294240,1.09656,1824.2,1824.1,6.47487928]
[1743454294441,1.09653,1824.3,1824.2,1.0965]
[1743454294643,1.09653,1824.3,1824.2,3.97645426]
[1743454295236,1.10469502,1824.4,1824.3,1.0965]
[1743454295438,1.10469502,1824.4,1824.3,7.18345426]
[1743454295733,1.10469502,1824.4,1824.3,7.18333093]
[1743454295932,0.00820502,1824.4,1824.3,7.18333093]
[1743454296240,1.10464502,1824.4,1824.3,7.18333093]
[1743454297245,1.10464502,1824.4,1824.3,6.08683093]
[1743454297639,1.10464502,1824.4,1824.3,7.18333093]
[1743454298043,1.10464502,1824.4,1824.3,6.08683093]
[1743454298237,1.10464502,1824.4,1824.3,5.351]
[1743454298942,2.54204502,1824.4,1824.3,5.351]
[1743454300444,1.10464502,1824.4,1824.3,6.4475]
[1743454300642,1.10464502,1824.4,1824.3,7.18287496]
[1743454301439,1.10464502,1824.4,1824.3,7.18282384]
[1743454301645,1.10464502,1824.4,1824.3,6.08632384]
[1743454301846,1.10464502,1824.4,1824.3,5.351]
[1743454303245,1.10464502,1824.4,1824.3,6.4475]
[1743454303449,1.10464502,1824.4,1824.3,5.351]
[1743454305952,1.09656,1824.2,1824.1,0.00820502]
[1743454306148,1.09656,1824.2,1824.1,3.21600502]
[1743454306352,1.09656,1824.2,1824.1,0.00820502]
[1743454306553,1.09656,1824.2,1824.1,5.73782502]
[1743454308666,1.09656,1824.2,1824.1,4.64120502]
[1743454309361,2.49716,1824.2,1824.1,4.64120502]
[1743454309559,3.20916,1824.2,1824.1,1.43340502]
[1743454310162,1.09656,1824.2,1824.1,5.73782502]
[1743454310750,1.09656,1824.2,1824.1,4.64120502]
[1743454310956,2.49716,1824.2,1824.1,4.64120502]
[1743454311157,2.49716,1824.2,1824.1,1.43340502]
[1743454311765,2.49716,1824.2,1824.1,0.00820502]
[1743454315769,6.11516,1824.2,1824.1,0.00820502]
[1743454317066,6.11516,1824.2,1824.1,3.21600502]
[1743454317269,2.49716,1824.2,1824.1,0.00820502]
[1743454317467,6.11216,1824.2,1824.1,1.43670502]
[1743454317664,1.09656,1824.2,1824.1,5.74112502]
[1743454318057,1.09656,1824.2,1824.1,6.47676889]
[1743454319170,1.09652,1824.3,1824.2,1.0965]
[1743454319371,1.10469502,1824.4,1824.3,1.0965]
[1743454319668,1.10469502,1824.4,1824.3,7.11055861]
[1743454319866,0.00820502,1824.4,1824.3,7.11055861]
[1743454320168,0.00820502,1824.4,1824.3,7.11052096]
[1743454321067,0.00820502,1824.4,1824.3,7.11051142]
[1743454322770,1.10464502,1824.4,1824.3,7.11014928]